fUSD/lending_fUSD_20260615
["ID","MTS","AMOUNT","RATE_DAILY","PERIOD"]
[425078942,1781466649000,-736.82,0.00014999,2]
[425078938,1781466649000,-736.82,0.00014999,2]
[425078937,1781466649000,-520.99910631,0.00014999,2]
[425078953,1781466649000,-771.03,0.00014999,2]
[425078946,1781466649000,-736.82,0.00014999,2]
[425079004,1781466650000,-1625.54,0.00014999,2]
[425079009,1781466650000,-1625.6896746,0.00014999,2]
[425079012,1781466650000,-500.0,0.00014999,2]
[425079007,1781466650000,-1625.54,0.00014999,2]
[425079008,1781466650000,-1625.54,0.00014999,2]
[425079006,1781466650000,-1625.54,0.00014999,2]
[425079003,1781466650000,-1625.54,0.00014999,2]
[425079010,1781466650000,-181.0,0.00014999,2]
[425079011,1781466650000,-500.0,0.00014999,2]
[425079016,1781466650000,-500.0,0.00014999,2]
[425079013,1781466650000,-500.0,0.00014999,2]
[425079024,1781466650000,-500.0,0.00014999,2]
[425079015,1781466650000,-500.0,0.00014999,2]
[425079019,1781466650000,-964.72,0.00014999,2]
[425079023,1781466650000,-964.72,0.00014999,2]
[425079020,1781466650000,-500.0,0.00014999,2]
[425079017,1781466650000,-964.72,0.00014999,2]
[425079005,1781466650000,-1625.54,0.00014999,2]
[425079021,1781466650000,-964.72,0.00014999,2]
[425079014,1781466650000,-500.0,0.00014999,2]
[425079002,1781466650000,-1625.54,0.00014999,2]
[425078983,1781466650000,-821.1,0.00014999,2]
[425079000,1781466650000,-1625.54,0.00014999,2]
[425079018,1781466650000,-500.0,0.00014999,2]
[425078980,1781466650000,-779.21,0.00014999,2]
[425078982,1781466650000,-821.1,0.00014999,2]
[425078981,1781466650000,-779.30531058,0.00014999,2]
[425078985,1781466650000,-821.1,0.00014999,2]
[425078984,1781466650000,-821.1,0.00014999,2]
[425078989,1781466650000,-821.1,0.00014999,2]
[425078987,1781466650000,-821.1,0.00014999,2]
[425078986,1781466650000,-821.1,0.00014999,2]
[425078998,1781466650000,-3000.0,0.00014999,2]
[425078988,1781466650000,-821.1,0.00014999,2]
[425078991,1781466650000,-821.1,0.00014999,2]
[425078990,1781466650000,-821.1,0.00014999,2]
[425078992,1781466650000,-821.1,0.00014999,2]
[425078993,1781466650000,-821.1,0.00014999,2]
[425078996,1781466650000,-821.1,0.00014999,2]
[425078994,1781466650000,-821.1,0.00014999,2]
[425078995,1781466650000,-821.1,0.00014999,2]
[425078997,1781466650000,-821.15736959,0.00014999,2]
[425078999,1781466650000,-250.0,0.00014999,2]
[425079001,1781466650000,-1625.54,0.00014999,2]
[425079022,1781466650000,-500.0,0.00014999,2]
[425079038,1781466650000,-500.0,0.00014999,2]
[425079028,1781466650000,-883.18,0.00014999,2]
[425079047,1781466650000,-964.72,0.00014999,2]
[425079054,1781466650000,-964.72,0.00014999,2]
[425079053,1781466650000,-500.0,0.00014999,2]
[425079050,1781466650000,-883.18,0.00014999,2]
[425079056,1781466650000,-500.0,0.00014999,2]
[425079057,1781466650000,-964.72,0.00014999,2]
[425079059,1781466650000,-500.0,0.00014999,2]
[425079058,1781466650000,-883.18,0.00014999,2]
[425079069,1781466650000,-500.0,0.00014999,2]
[425079060,1781466650000,-964.72,0.00014999,2]
[425079026,1781466650000,-500.0,0.00014999,2]
[425079066,1781466650000,-500.0,0.00014999,2]
[425079063,1781466650000,-964.72,0.00014999,2]
[425079061,1781466650000,-883.18,0.00014999,2]
[425079068,1781466650000,-964.72,0.00014999,2]
[425079065,1781466650000,-964.72,0.00014999,2]
[425079064,1781466650000,-500.0,0.00014999,2]
[425079067,1781466650000,-883.18,0.00014999,2]
[425079070,1781466650000,-964.72,0.00014999,2]
[425079049,1781466650000,-500.0,0.00014999,2]
[425079052,1781466650000,-883.18,0.00014999,2]
[425079062,1781466650000,-500.0,0.00014999,2]
[425079051,1781466650000,-500.0,0.00014999,2]
[425079055,1781466650000,-883.18,0.00014999,2]
[425079025,1781466650000,-964.72,0.00014999,2]
[425079030,1781466650000,-883.18,0.00014999,2]
[425079027,1781466650000,-964.72,0.00014999,2]
[425079029,1781466650000,-500.0,0.00014999,2]
[425079031,1781466650000,-964.72,0.00014999,2]
[425079033,1781466650000,-964.72,0.00014999,2]
[425079034,1781466650000,-883.18,0.00014999,2]
[425079036,1781466650000,-883.18,0.00014999,2]
[425079035,1781466650000,-500.0,0.00014999,2]
[425079032,1781466650000,-500.0,0.00014999,2]
[425079039,1781466650000,-883.18,0.00014999,2]
[425079042,1781466650000,-883.18,0.00014999,2]
[425079043,1781466650000,-964.72,0.00014999,2]
[425079040,1781466650000,-964.72,0.00014999,2]
[425079044,1781466650000,-883.18,0.00014999,2]
[425079041,1781466650000,-500.0,0.00014999,2]
[425079045,1781466650000,-964.72,0.00014999,2]
[425079046,1781466650000,-500.0,0.00014999,2]
[425079037,1781466650000,-964.72,0.00014999,2]
[425079048,1781466650000,-883.18,0.00014999,2]
[425079090,1781466651000,-584.1,0.00014999,2]
[425079082,1781466651000,-500.0,0.00014999,2]
[425079089,1781466651000,-500.0,0.00014999,2]
[425079087,1781466651000,-584.1,0.00014999,2]
[425079091,1781466651000,-500.0,0.00014999,2]
[425079101,1781466651000,-500.0,0.00014999,2]
[425079092,1781466651000,-584.1,0.00014999,2]
[425079093,1781466651000,-500.0,0.00014999,2]
[425079104,1781466651000,-500.0,0.00014999,2]
[425079088,1781466651000,-500.0,0.00014999,2]
[425079085,1781466651000,-584.1,0.00014999,2]
[425079086,1781466651000,-500.0,0.00014999,2]
[425079081,1781466651000,-500.0,0.00014999,2]
[425079083,1781466651000,-584.1,0.00014999,2]
[425079077,1781466651000,-964.93778046,0.00014999,2]
[425079097,1781466651000,-500.0,0.00014999,2]
[425079080,1781466651000,-500.0,0.00014999,2]
[425079072,1781466651000,-500.0,0.00014999,2]
[425079078,1781466651000,-500.0,0.00014999,2]
[425079076,1781466651000,-500.0,0.00014999,2]
[425079079,1781466651000,-500.0,0.00014999,2]
[425079074,1781466651000,-500.0,0.00014999,2]
[425079073,1781466651000,-964.72,0.00014999,2]
[425079075,1781466651000,-964.72,0.00014999,2]
[425079071,1781466651000,-883.2,0.00014999,2]
[425079084,1781466651000,-500.0,0.00014999,2]
[425079096,1781466651000,-584.1,0.00014999,2]
[425079112,1781466651000,-500.0,0.00014999,2]
[425079095,1781466651000,-500.0,0.00014999,2]
[425079094,1781466651000,-584.1,0.00014999,2]
[425079124,1781466651000,-300.0,0.00014999,2]
[425079125,1781466651000,-666.0,0.00014999,2]
[425079120,1781466651000,-500.0,0.00014999,2]
[425079126,1781466651000,-4610279.0622858,0.00015,2]
[425079121,1781466651000,-500.0,0.00014999,2]
[425079122,1781466651000,-300.0,0.00014999,2]
[425079119,1781466651000,-500.0,0.00014999,2]
[425079117,1781466651000,-500.0,0.00014999,2]
[425079118,1781466651000,-500.0,0.00014999,2]
[425079111,1781466651000,-500.0,0.00014999,2]
[425079108,1781466651000,-500.0,0.00014999,2]
[425079109,1781466651000,-500.0,0.00014999,2]
[425079123,1781466651000,-300.0,0.00014999,2]
[425079107,1781466651000,-500.0,0.00014999,2]
[425079105,1781466651000,-500.0,0.00014999,2]
[425079100,1781466651000,-584.1,0.00014999,2]
[425079102,1781466651000,-584.19855896,0.00014999,2]
[425079103,1781466651000,-500.0,0.00014999,2]
[425079099,1781466651000,-500.0,0.00014999,2]
[425079098,1781466651000,-584.1,0.00014999,2]
[425079106,1781466651000,-500.0,0.00014999,2]
[425079116,1781466651000,-500.0,0.00014999,2]
[425079114,1781466651000,-500.0,0.00014999,2]
[425079113,1781466651000,-500.0,0.00014999,2]
[425079110,1781466651000,-500.0,0.00014999,2]
[425079115,1781466651000,-500.0,0.00014999,2]
[425079134,1781466652000,-500.0,0.00014999,2]
[425079127,1781466652000,-624.78823798,0.00013598,2]
[425079128,1781466652000,-447.1571751,0.00013598,2]
[425079129,1781466652000,-677.0,0.00013598,2]
[425079130,1781466652000,-12839.223658,0.00013598,2]
[425079132,1781466652000,-500.0,0.00014999,2]
[425079133,1781466652000,-500.0,0.00014999,2]
[425079131,1781466652000,-1207.94635862,0.000139,2]
[425079137,1781466652000,-500.0,0.00014999,2]
[425079138,1781466652000,-5345.42327982,0.00015,2]
[425079136,1781466652000,-500.0,0.00014999,2]
[425079139,1781466652000,-2082.42212721,0.00015,2]
[425079140,1781466652000,-475.94190023,0.00015,2]
[425079145,1781466652000,-2755.42374962,0.00015,2]
[425079143,1781466652000,-10595.09643909,0.00015,2]
[425079144,1781466652000,-360.11324534,0.00015,2]
[425079142,1781466652000,-500.0,0.00014999,2]
[425079141,1781466652000,-12452.64987675,0.00015,2]
[425079135,1781466652000,-500.0,0.00014999,2]
[425079149,1781466653000,-500.0,0.00014999,2]
[425079146,1781466653000,-500.0,0.00014999,2]
[425079147,1781466653000,-500.0,0.00014999,2]
[425079148,1781466653000,-500.0,0.00014999,2]
[425079153,1781466653000,-4827.96594401,0.00015,2]
[425079154,1781466653000,-500.0,0.00014999,2]
[425079151,1781466653000,-500.0,0.00014999,2]
[425079150,1781466653000,-500.0,0.00014999,2]
[425079156,1781466653000,-762554.35976374,0.00015,2]
[425079157,1781466653000,-178658.11164579,0.00015,2]
[425079155,1781466653000,-884.47308241,0.00015,2]
[425079152,1781466653000,-500.0,0.00014999,2]
[425079158,1781466654000,-500.0,0.00013698,2]
[425079160,1781466654000,-500.0,0.00013698,2]
[425079159,1781466654000,-500.0,0.00013698,2]
[425079170,1781466654000,-500.0,0.00014999,2]
[425079173,1781466654000,-500.0,0.00014999,2]
[425079172,1781466654000,-500.0,0.00014999,2]
[425079171,1781466654000,-500.0,0.00014999,2]
[425079161,1781466654000,-500.0,0.00013698,2]
[425079168,1781466654000,-500.0,0.00014999,2]
[425079162,1781466654000,-500.0,0.00013698,2]
[425079167,1781466654000,-500.0,0.00014999,2]
[425079165,1781466654000,-1207.94635862,0.000144,2]
[425079166,1781466654000,-500.0,0.00014999,2]
[425079164,1781466654000,-14588.16907108,0.00013859,2]
[425079169,1781466654000,-500.0,0.00014999,2]
[425079175,1781466654000,-35849.13094859,0.00015,2]
[425079174,1781466654000,-500.0,0.00014999,2]
[425079178,1781466654000,-803.27365441,0.00015,2]
[425079177,1781466654000,-500.0,0.00014899,2]
[425079176,1781466654000,-9147.55601144,0.00015,2]
[425079163,1781466654000,-500.0,0.00013698,2]
[425079179,1781466694000,-500.0,0.00011854,2]
[425079220,1781466754000,1175.75661728,0.0003,120]
[425079222,1781467052000,4324.49420444,0.00030137,120]
[425079223,1781467147000,-500.0,0.00011852,2]
[425079224,1781467200000,-152.0,0.00011852,2]
[425079225,1781467253000,-166.66,0.00011051,2]
[425079236,1781467274000,-166.66,0.00011749,2]
[425079226,1781467274000,-151.0,0.00011054,2]
[425079227,1781467274000,-153.0,0.00011054,2]
[425079228,1781467274000,-150.0,0.00011065,2]
[425079229,1781467274000,-151.0,0.00011109,2]
[425079230,1781467274000,-166.66,0.00011284,2]
[425079232,1781467274000,-500.0,0.00011422,2]
[425079233,1781467274000,-500.0,0.00011422,2]
[425079231,1781467274000,-75771.45,0.000113,2]
[425079237,1781467274000,-151.0,0.00011852,2]
[425079234,1781467274000,-2777.98,0.00011423,2]
[425079235,1781467274000,-166.66,0.00011516,2]
[425079241,1781467274000,-151.0,0.00011853,2]
[425079248,1781467274000,-200.0,0.00012015,2]
[425079239,1781467274000,-151.0,0.00011853,2]
[425079240,1781467274000,-151.0,0.00011853,2]
[425079242,1781467274000,-151.0,0.00011853,2]
[425079243,1781467274000,-151.0,0.00011853,2]
[425079244,1781467274000,-151.0,0.00011853,2]
[425079245,1781467274000,-153.0,0.00011853,2]
[425079246,1781467274000,-2905.72,0.00011853,2]
[425079247,1781467274000,-166.66,0.00011982,2]
[425079251,1781467274000,-150.0,0.00012217,2]
[425079249,1781467274000,-174.72,0.00012081,2]
[425079238,1781467274000,-152.0,0.00011852,2]
[425079250,1781467274000,-166.66,0.00012214,2]
[425079261,1781467275000,-151.0,0.00012218,2]
[425079262,1781467275000,-151.0,0.00012218,2]
[425079253,1781467275000,-170.07180931,0.00012217,2]
[425079264,1781467275000,-152.0,0.00012219,2]
[425079260,1781467275000,-150.0,0.00012218,2]
[425079263,1781467275000,-152.0,0.00012219,2]
[425079259,1781467275000,-150.0,0.00012218,2]
[425079252,1781467275000,-500.0,0.00012217,2]
[425079257,1781467275000,-153.0,0.00012218,2]
[425079256,1781467275000,-263.59751945,0.00012217,2]
[425079255,1781467275000,-354.22744983,0.00012217,2]
[425079254,1781467275000,-500.0,0.00012217,2]
[425079265,1781467275000,-150.0,0.00012219,2]
[425079258,1781467275000,-151.0,0.00012218,2]
[425079266,1781467275000,-150.0,0.00012219,2]
[425079268,1781467275000,-1929.443,0.00012219,2]
[425079280,1781467275000,-777.96555258,0.00012457,2]
[425079281,1781467275000,-3000.0,0.00012468,2]
[425079279,1781467275000,-151.0,0.00012457,2]
[425079267,1781467275000,-152.0,0.00012219,2]
[425079277,1781467275000,-414.5107552,0.00012374,2]
[425079278,1781467275000,-1000.0,0.00012414,2]
[425079275,1781467275000,-5835.26762845,0.00012374,2]
[425079276,1781467275000,-3862.55481726,0.00012374,2]
[425079272,1781467275000,-1370.8734,0.00012369,2]
[425079274,1781467275000,-6823.5047,0.00012369,2]
[425079271,1781467275000,-356.92,0.00012349,2]
[425079270,1781467275000,-164.66,0.00012318,2]
[425079269,1781467275000,-189.695,0.00012219,2]
[425079273,1781467275000,-4181.8847,0.00012369,2]
[425079282,1781467275000,-500.0,0.00012468,2]
[425079288,1781467276000,-1500000.0,0.00012469,2]
[425079289,1781467276000,-1234.14,0.00012474,2]
[425079286,1781467276000,-500.0,0.00012468,2]
[425079291,1781467276000,-2000.0,0.00012557,2]
[425079284,1781467276000,-500.0,0.00012468,2]
[425079285,1781467276000,-500.0,0.00012468,2]
[425079283,1781467276000,-500.0,0.00012468,2]
[425079287,1781467276000,-500.0,0.00012468,2]
[425079292,1781467276000,-5835.26762843,0.00012655,2]
[425079298,1781467276000,-5835.26762843,0.00012935,2]
[425079294,1781467276000,-539.47,0.00012803,2]
[425079293,1781467276000,-3862.55481724,0.00012655,2]
[425079295,1781467276000,-9999.99,0.00012893,2]
[425079296,1781467276000,-18948.13,0.00012893,2]
[425079297,1781467276000,-1986.04,0.00012893,2]
[425079299,1781467276000,-3862.55481724,0.00012935,2]
[425079300,1781467276000,-174.99,0.00012953,2]
[425079301,1781467276000,-2000.0,0.00012982,2]
[425079290,1781467276000,-450.4524,0.00012557,2]
[425079302,1781467277000,150.0,0.00011054,2]
[425079312,1781467593000,-1472.23,0.00011893,2]
[425079313,1781467765000,-151.0,0.00011643,2]
[425079314,1781467818000,-3929.6139539,0.00011416,2]
[425079315,1781467836000,-1613.85117049,0.00011416,2]
[425079316,1781467837000,507782.35400153,0.000301,120]
[425079389,1781467839000,-25.25853157,0.00011893,2]
[425079378,1781467839000,-151.0,0.00011643,2]
[425079393,1781467839000,-152.0,0.00012079,2]
[425079391,1781467839000,-289.09452966,0.00012077,2]
[425079387,1781467839000,-150.0,0.00011893,2]
[425079383,1781467839000,-151.0,0.00011893,2]
[425079394,1781467839000,-150.0,0.00012079,2]
[425079385,1781467839000,-22.97883862,0.00011893,2]
[425079386,1781467839000,-153.0,0.00011893,2]
[425079384,1781467839000,-129.02116138,0.00011893,2]
[425079392,1781467839000,-256.48,0.00012079,2]
[425079382,1781467839000,-613.04,0.00011643,2]
[425079390,1781467839000,-151.0,0.00011893,2]
[425079380,1781467839000,-151.0,0.00011643,2]
[425079377,1781467839000,-41.79538998,0.00011643,2]
[425079379,1781467839000,-152.0,0.00011643,2]
[425079376,1781467839000,-109.20461002,0.00011643,2]
[425079372,1781467839000,-151.0,0.00011416,2]
[425079375,1781467839000,-150.0,0.00011643,2]
[425079373,1781467839000,-1710.01,0.00011455,2]
[425079374,1781467839000,-150.0,0.00011455,2]
[425079371,1781467839000,-150.0,0.00011416,2]
[425079369,1781467839000,-379.74556865,0.00011416,2]
[425079370,1781467839000,-789.60930696,0.00011416,2]
[425079368,1781467839000,-1160.88,0.00011416,2]
[425079381,1781467839000,-150.0,0.00011643,2]
[425079388,1781467839000,-125.74146843,0.00011893,2]
[425079420,1781467839000,-3000.0,0.00012368,2]
[425079400,1781467839000,-151.0,0.00012079,2]
[425079395,1781467839000,-152.0,0.00012079,2]
[425079421,1781467839000,-2000.0,0.00012369,2]
[425079422,1781467839000,-75047.27803747,0.00012369,2]
[425079423,1781467839000,-1254.41808677,0.00012369,2]
[425079419,1781467839000,-183.93,0.00012329,2]
[425079413,1781467839000,-53656.61297665,0.00012269,2]
[425079410,1781467839000,-151.0,0.00012209,2]
[425079418,1781467839000,-4084.68733991,0.00012298,2]
[425079412,1781467839000,-2500.0,0.00012269,2]
[425079416,1781467839000,-276.34050346,0.00012298,2]
[425079411,1781467839000,-150.0,0.00012268,2]
[425079414,1781467839000,-53086.13952335,0.00012269,2]
[425079407,1781467839000,-151.0,0.00012189,2]
[425079415,1781467839000,-151.0,0.00012272,2]
[425079417,1781467839000,-2703.78837214,0.00012298,2]
[425079409,1781467839000,-187.0,0.00012199,2]
[425079398,1781467839000,-151.0,0.00012079,2]
[425079399,1781467839000,-151.0,0.00012079,2]
[425079402,1781467839000,-2022.276,0.00012121,2]
[425079396,1781467839000,-150.0,0.00012079,2]
[425079401,1781467839000,-151.0,0.00012079,2]
[425079397,1781467839000,-150.0,0.00012079,2]
[425079406,1781467839000,-151.0,0.00012188,2]
[425079405,1781467839000,-151.0,0.00012188,2]
[425079404,1781467839000,-152.0,0.00012121,2]
[425079408,1781467839000,-151.0,0.00012193,2]
[425079403,1781467839000,-194.58,0.00012121,2]
[425079453,1781467841000,-2703.78837206,0.00013454,2]
[425079446,1781467841000,-299.99,0.00012893,2]
[425079452,1781467841000,-1472.23,0.00013379,2]
[425079454,1781467841000,-4084.6873399,0.00013454,2]
[425079447,1781467841000,-150.0,0.00013107,2]
[425079455,1781467841000,-150.0,0.00013488,2]
[425079449,1781467841000,-4084.6873399,0.00013165,2]
[425079448,1781467841000,-2703.78837206,0.00013165,2]
[425079450,1781467841000,-5207.24462008,0.00013239,2]
[425079456,1781467841000,-1352.63470453,0.00013572,2]
[425079443,1781467841000,-2703.78837206,0.00012876,2]
[425079451,1781467841000,-255.0,0.0001336,2]
[425079445,1781467841000,-150.99,0.00012893,2]
[425079430,1781467841000,-429.37950307,0.00012369,2]
[425079441,1781467841000,-160.08666874,0.00012757,2]
[425079439,1781467841000,-12305.99,0.00012654,2]
[425079440,1781467841000,-150.0,0.00012735,2]
[425079437,1781467841000,-2703.78837206,0.00012587,2]
[425079438,1781467841000,-4084.6873399,0.00012587,2]
[425079436,1781467841000,-287.38,0.0001258,2]
[425079435,1781467841000,-27359.5095403,0.0001248,2]
[425079433,1781467841000,-1422453.92437269,0.00012369,2]
[425079434,1781467841000,-150.0,0.00012398,2]
[425079431,1781467841000,-315.0,0.00012369,2]
[425079432,1781467841000,-500.0,0.00012369,2]
[425079466,1781467841000,-415.12475003,0.00013698,2]
[425079429,1781467841000,-151.0,0.00011416,2]
[425079442,1781467841000,-160.08666874,0.00012757,2]
[425079457,1781467841000,-2000.0,0.0001358,2]
[425079444,1781467841000,-4084.6873399,0.00012876,2]
[425079459,1781467841000,-226.33260723,0.00013698,2]
[425079458,1781467841000,-276.34050345,0.00013599,2]
[425079489,1781467841000,-500.0,0.00013698,2]
[425079484,1781467841000,-500.0,0.00013698,2]
[425079488,1781467841000,-500.0,0.00013698,2]
[425079487,1781467841000,-500.0,0.00013698,2]
[425079486,1781467841000,-500.0,0.00013698,2]
[425079481,1781467841000,-500.0,0.00013698,2]
[425079482,1781467841000,-500.0,0.00013698,2]
[425079483,1781467841000,-500.0,0.00013698,2]
[425079479,1781467841000,-500.0,0.00013698,2]
[425079480,1781467841000,-503.59381649,0.00013698,2]
[425079478,1781467841000,-500.0,0.00013698,2]
[425079474,1781467841000,-512.28714422,0.00013698,2]
[425079475,1781467841000,-500.0,0.00013698,2]
[425079485,1781467841000,-500.0,0.00013698,2]
[425079468,1781467841000,-500.0,0.00013698,2]
[425079477,1781467841000,-500.0,0.00013698,2]
[425079463,1781467841000,-500.0,0.00013698,2]
[425079460,1781467841000,-500.0,0.00013698,2]
[425079465,1781467841000,-500.0,0.00013698,2]
[425079462,1781467841000,-500.0,0.00013698,2]
[425079467,1781467841000,-500.0,0.00013698,2]
[425079461,1781467841000,-500.0,0.00013698,2]
[425079476,1781467841000,-510.79198853,0.00013698,2]
[425079473,1781467841000,-500.0,0.00013698,2]
[425079469,1781467841000,-500.0,0.00013698,2]
[425079464,1781467841000,-500.0,0.00013698,2]
[425079470,1781467841000,-500.0,0.00013698,2]
[425079472,1781467841000,-500.0,0.00013698,2]
[425079471,1781467841000,-500.0,0.00013698,2]
[425079519,1781467842000,-500.0,0.00013698,2]
[425079530,1781467842000,-500.0,0.00013698,2]
[425079520,1781467842000,-500.0,0.00013698,2]
[425079521,1781467842000,-500.0,0.00013698,2]
[425079542,1781467842000,-500.0,0.00013698,2]
[425079526,1781467842000,-500.0,0.00013698,2]
[425079522,1781467842000,-500.0,0.00013698,2]
[425079523,1781467842000,-500.0,0.00013698,2]
[425079527,1781467842000,-500.0,0.00013698,2]
[425079531,1781467842000,-500.0,0.00013698,2]
[425079532,1781467842000,-500.0,0.00013698,2]
[425079525,1781467842000,-504.0687638,0.00013698,2]
[425079537,1781467842000,-1077.43,0.00013698,2]
[425079529,1781467842000,-500.0,0.00013698,2]
[425079535,1781467842000,-1077.43,0.00013698,2]
[425079534,1781467842000,-1077.43,0.00013698,2]
[425079536,1781467842000,-1077.43,0.00013698,2]
[425079528,1781467842000,-500.0,0.00013698,2]
[425079539,1781467842000,-1077.43,0.00013698,2]
[425079538,1781467842000,-1077.43,0.00013698,2]
[425079540,1781467842000,-1077.43,0.00013698,2]
[425079541,1781467842000,-500.0,0.00013698,2]
[425079547,1781467842000,-500.0,0.00013698,2]
[425079518,1781467842000,-736.82,0.00013698,2]
[425079533,1781467842000,-500.0,0.00013698,2]
[425079517,1781467842000,-500.0,0.00013698,2]
[425079500,1781467842000,-500.0,0.00013698,2]
[425079516,1781467842000,-736.82,0.00013698,2]
[425079490,1781467842000,-500.0,0.00013698,2]
[425079491,1781467842000,-500.0,0.00013698,2]
[425079492,1781467842000,-500.0,0.00013698,2]
[425079502,1781467842000,-500.0,0.00013698,2]
[425079495,1781467842000,-500.0,0.00013698,2]
[425079498,1781467842000,-500.0,0.00013698,2]
[425079503,1781467842000,-500.0,0.00013698,2]
[425079493,1781467842000,-500.0,0.00013698,2]
[425079496,1781467842000,-500.0,0.00013698,2]
[425079494,1781467842000,-500.0,0.00013698,2]
[425079501,1781467842000,-500.0,0.00013698,2]
[425079515,1781467842000,-500.0,0.00013698,2]
[425079499,1781467842000,-500.0,0.00013698,2]
[425079504,1781467842000,-500.0,0.00013698,2]
[425079505,1781467842000,-500.0,0.00013698,2]
[425079507,1781467842000,-500.0,0.00013698,2]
[425079510,1781467842000,-736.82,0.00013698,2]
[425079508,1781467842000,-500.0,0.00013698,2]
[425079509,1781467842000,-500.0,0.00013698,2]
[425079506,1781467842000,-500.0,0.00013698,2]
[425079512,1781467842000,-736.82,0.00013698,2]
[425079513,1781467842000,-736.82,0.00013698,2]
[425079514,1781467842000,-736.82,0.00013698,2]
[425079511,1781467842000,-736.82,0.00013698,2]
[425079497,1781467842000,-500.0,0.00013698,2]
[425079545,1781467842000,-500.0,0.00013698,2]
[425079524,1781467842000,-500.0,0.00013698,2]
[425079544,1781467842000,-500.0,0.00013698,2]
[425079578,1781467842000,-500.0,0.00013698,2]
[425079584,1781467842000,-500.0,0.00013698,2]
[425079580,1781467842000,-500.0,0.00013698,2]
[425079576,1781467842000,-500.0,0.00013698,2]
[425079577,1781467842000,-500.0,0.00013698,2]
[425079588,1781467842000,-500.0,0.00013698,2]
[425079601,1781467842000,-500.0,0.00013698,2]
[425079599,1781467842000,-500.0,0.00013698,2]
[425079590,1781467842000,-500.0,0.00013698,2]
[425079592,1781467842000,-500.0,0.00013698,2]
[425079591,1781467842000,-500.0,0.00013698,2]
[425079595,1781467842000,-207.65368765,0.00013698,2]
[425079597,1781467842000,-500.0,0.00013698,2]
[425079596,1781467842000,-500.0,0.00013698,2]
[425079593,1781467842000,-500.0,0.00013698,2]
[425079594,1781467842000,-500.0,0.00013698,2]
[425079604,1781467842000,-883.18,0.00013698,2]
[425079608,1781467842000,-883.18,0.00013698,2]
[425079605,1781467842000,-883.18,0.00013698,2]
[425079607,1781467842000,-883.18,0.00013698,2]
[425079610,1781467842000,-883.18,0.00013698,2]
[425079603,1781467842000,-317.27339362,0.00013698,2]
[425079611,1781467842000,-239.54885664,0.00013698,2]
[425079606,1781467842000,-883.18,0.00013698,2]
[425079546,1781467842000,-500.0,0.00013698,2]
[425079582,1781467842000,-500.0,0.00013698,2]
[425079572,1781467842000,-779.21,0.00013698,2]
[425079609,1781467842000,-883.18,0.00013698,2]
[425079573,1781467842000,-779.21,0.00013698,2]
[425079575,1781467842000,-500.0,0.00013698,2]
[425079543,1781467842000,-292.56293859,0.00013698,2]
[425079550,1781467842000,-500.0,0.00013698,2]
[425079552,1781467842000,-500.0,0.00013698,2]
[425079557,1781467842000,-500.0,0.00013698,2]
[425079558,1781467842000,-500.0,0.00013698,2]